bitfinex/quotes_BTCUSD_20250119
["timestamp","ask_amount","ask_price","bid_price","bid_amount"]
[1737248634404,0.00104951,104250.0,104240.0,0.78430902]
[1737248634607,0.38783441,104270.0,104250.0,0.31236517]
[1737248634787,0.38783441,104270.0,104260.0,0.16555963]
[1737248634935,0.38783441,104270.0,104260.0,0.17035026]
[1737248635367,0.38783441,104270.0,104260.0,0.10070463]
[1737248635601,0.38783441,104270.0,104260.0,0.20672632]
[1737248636030,0.00129859,104270.0,104260.0,0.31566586]
[1737248636800,0.00129859,104270.0,104260.0,0.6275]
[1737248637397,0.00129859,104270.0,104260.0,0.67100489]
[1737248638001,0.00129859,104270.0,104260.0,0.75709895]
[1737248638817,0.00129859,104270.0,104260.0,0.76674189]
[1737248639686,0.00129859,104270.0,104260.0,0.55178066]
[1737248640524,0.00129859,104270.0,104260.0,0.37951874]
[1737248640723,0.00129859,104270.0,104260.0,0.39909815]
[1737248640932,0.08339859,104270.0,104260.0,0.39909815]
[1737248641542,0.13029859,104270.0,104260.0,0.38945521]
[1737248641763,0.22620259,104270.0,104260.0,0.38945521]
[1737248642025,0.22620259,104270.0,104260.0,0.29354121]
[1737248642197,0.41985911,104270.0,104260.0,0.2739618]
[1737248642402,0.51909992,104270.0,104260.0,0.0586713]
[1737248642577,0.43146509,104270.0,104260.0,0.0586713]
[1737248642780,0.45446509,104270.0,104260.0,0.0586713]
[1737248642976,0.45446509,104270.0,104260.0,0.0086713]
[1737248643259,0.45446509,104270.0,104260.0,0.00390976]
[1737248643470,0.31255783,104250.0,104240.0,0.2152905]
[1737248643685,0.51782033,104250.0,104240.0,0.2152905]
[1737248644083,0.70967333,104250.0,104230.0,0.479687]
[1737248644399,0.70967333,104250.0,104230.0,0.4798375]
[1737248644621,0.90152633,104250.0,104230.0,0.4798375]
[1737248645027,0.90152633,104250.0,104230.0,0.2879545]
[1737248645259,0.42189733,104250.0,104240.0,0.095932]
[1737248646232,0.178032,104240.0,104230.0,0.4379535]
[1737248646634,0.0821,104240.0,104230.0,0.4379535]
[1737248646856,0.0821,104240.0,104230.0,0.43962039]
[1737248647227,0.27575652,104240.0,104230.0,0.43962039]
[1737248648061,0.27575652,104240.0,104230.0,0.28962039]
[1737248649296,0.16973483,104240.0,104230.0,0.28962039]
[1737248650453,0.08763483,104240.0,104230.0,0.29358996]
[1737248653808,0.129,104250.0,104240.0,0.095932]
[1737248654211,0.129,104250.0,104240.0,0.10159867]
[1737248654818,0.16973483,104250.0,104240.0,0.10159867]
[1737248656039,0.16973483,104250.0,104240.0,0.11951222]
[1737248656919,0.17093393,104250.0,104240.0,0.11951222]
[1737248657155,0.27695562,104250.0,104240.0,0.11951222]
[1737248657327,0.27575652,104250.0,104240.0,0.11951222]
[1737248660924,0.16973483,104250.0,104240.0,0.11951222]
[1737248661137,0.17093394,104250.0,104240.0,0.11951222]
[1737248661333,0.17093394,104250.0,104240.0,0.12040997]
[1737248665089,0.16973483,104250.0,104240.0,0.12040997]
[1737248665492,0.26565783,104250.0,104240.0,0.12040997]
[1737248666566,0.16973483,104250.0,104240.0,0.15626141]
[1737248667128,0.26685694,104250.0,104240.0,0.15626141]
[1737248667335,0.26565783,104250.0,104240.0,0.15626141]
[1737248667741,0.16973483,104250.0,104240.0,0.15626141]
[1737248667887,0.26685694,104250.0,104240.0,0.15626141]
[1737248668087,0.26565783,104250.0,104240.0,0.15626141]
[1737248668290,0.36489864,104250.0,104240.0,0.06032941]
[1737248668608,0.3832855,104250.0,104240.0,0.06032941]
[1737248668814,0.4292855,104250.0,104240.0,0.06032941]
[1737248669015,0.53530719,104250.0,104240.0,0.06032941]
[1737248669210,0.4292855,104250.0,104240.0,0.06032941]
[1737248670231,0.4292855,104250.0,104240.0,0.02447797]
[1737248674296,0.4292855,104250.0,104240.0,0.12040997]
[1737248674819,0.31497564,104250.0,104240.0,0.15635181]
[1737248680191,0.31497564,104250.0,104240.0,0.17583378]
[1737248682171,0.31497564,104250.0,104240.0,0.15635181]
[1737248685400,0.26897564,104250.0,104240.0,0.15635181]
[1737248688035,0.16973483,104250.0,104240.0,0.15635181]
[1737248689196,0.16973483,104250.0,104240.0,0.24244587]
[1737248689976,0.13686233,104260.0,104240.0,0.44797223]
[1737248690176,0.26920314,104260.0,104250.0,0.095923]
[1737248690390,0.26920314,104260.0,104250.0,0.09755308]
[1737248690585,0.26920314,104260.0,104250.0,0.10157285]
[1737248691588,0.26920314,104260.0,104250.0,0.2415223]
[1737248695295,0.37522483,104260.0,104250.0,0.2415223]
[1737248696304,0.37522483,104260.0,104250.0,0.17505852]
[1737248696777,0.36511714,104260.0,104250.0,0.17505852]
[1737248696970,0.36511714,104260.0,104250.0,0.15542824]
[1737248698476,0.26920314,104260.0,104250.0,0.15542824]
[1737248700259,0.16996233,104260.0,104250.0,0.15542824]
[1737248701413,0.0823275,104260.0,104250.0,0.2415223]
[1737248701618,0.0004275,104260.0,104250.0,0.3644223]
[1737248701999,0.0004275,104260.0,104250.0,0.62044399]
[1737248702502,0.0004275,104260.0,104250.0,0.92190235]
[1737248702698,0.0004275,104260.0,104250.0,0.81588066]
[1737248702911,0.0004275,104260.0,104250.0,0.84459405]
[1737248703114,0.0004275,104260.0,104250.0,0.95061574]
[1737248703386,0.0004275,104260.0,104250.0,0.93262277]
[1737248704110,0.0004275,104260.0,104250.0,0.82660108]
[1737248705454,0.0004275,104260.0,104250.0,0.783956]
[1737248706383,0.0004275,104260.0,104250.0,0.95616007]
[1737248706753,0.0004275,104260.0,104250.0,0.92021823]
[1737248706952,0.0004275,104260.0,104250.0,1.04934515]
[1737248707640,0.0004275,104260.0,104250.0,0.93773917]
[1737248707835,0.0004275,104260.0,104250.0,0.86263917]
[1737248708179,0.0004275,104260.0,104250.0,0.86353692]
[1737248708557,0.0004275,104260.0,104250.0,0.73430482]
[1737248709523,0.0004275,104260.0,104250.0,0.77016332]
[1737248710159,0.0004275,104260.0,104250.0,0.59795925]
[1737248711778,0.0004275,104260.0,104250.0,0.55015925]
[1737248711961,0.0792275,104260.0,104250.0,0.55015925]
[1737248713683,0.0792275,104260.0,104250.0,0.42103233]
[1737248716863,0.4017275,104260.0,104250.0,0.42103233]
[1737248717153,0.4017275,104260.0,104250.0,0.27103233]
[1737248717154,0.48936233,104260.0,104250.0,0.27103233]
[1737248718226,0.48936233,104260.0,104250.0,0.18495604]
[1737248718546,0.26610314,104260.0,104250.0,0.18495604]
[1737248721300,0.26610314,104260.0,104250.0,0.27103233]
[1737248724420,0.0792275,104260.0,104250.0,0.27103233]
[1737248724948,0.0004275,104260.0,104250.0,0.27103233]
[1737248725152,0.0004275,104260.0,104250.0,0.31703233]
[1737248725892,0.0004275,104260.0,104250.0,0.44615925]
[1737248726788,0.0004275,104260.0,104250.0,0.61836332]
[1737248727893,0.0004275,104260.0,104250.0,0.78767171]
[1737248728720,0.3229275,104260.0,104250.0,0.78767171]
[1737248729226,0.3229275,104260.0,104250.0,0.57236332]
[1737248730915,0.3229275,104260.0,104250.0,0.78767171]
[1737248731393,0.3229275,104260.0,104250.0,0.70159542]
[1737248733059,0.48586233,104260.0,104250.0,0.70159542]
[1737248733974,0.59188402,104260.0,104250.0,0.70159542]
[1737248734154,0.59188402,104260.0,104250.0,0.57246711]
[1737248734367,0.48586233,104260.0,104250.0,0.57246711]
[1737248734740,0.16336233,104260.0,104250.0,0.57246711]
[1737248734943,0.16456133,104260.0,104250.0,0.57246711]
[1737248736089,0.16336233,104260.0,104250.0,0.57246711]
[1737248736861,0.16336233,104260.0,104250.0,0.7877755]
[1737248737308,0.16456133,104260.0,104250.0,0.7877755]
[1737248738135,0.16456133,104260.0,104250.0,0.6918525]
[1737248738136,0.424003,104260.0,104250.0,0.6918525]
[1737248738335,0.422804,104260.0,104250.0,0.6918525]
[1737248739128,0.422804,104260.0,104250.0,0.08903304]
[1737248739855,0.52882569,104260.0,104250.0,0.08903304]
[1737248741013,0.52382569,104260.0,104250.0,0.08903304]
[1737248741250,0.78272254,104260.0,104250.0,0.02446115]
[1737248741490,0.88272254,104260.0,104250.0,0.02446115]
[1737248742078,0.78272254,104260.0,104250.0,0.02446115]
[1737248742460,1.08336151,104260.0,104250.0,0.02446115]
[1737248742673,1.08336151,104260.0,104250.0,0.0065476]
[1737248743448,1.09302886,104260.0,104250.0,0.0065476]
[1737248743648,0.92166296,104260.0,104250.0,0.0065476]
[1737248745892,1.09345666,104260.0,104250.0,0.0065476]
[1737248746506,0.92166296,104260.0,104250.0,0.0065476]
[1737248748181,0.79281769,104260.0,104250.0,0.0065476]
[1737248748379,0.89281769,104260.0,104250.0,0.0065476]
[1737248748516,0.68077431,104260.0,104250.0,0.0065476]
[1737248748720,0.50051746,104260.0,104250.0,0.0065476]
[1737248748999,0.70629935,104260.0,104250.0,0.0065476]
[1737248749496,0.81232104,104260.0,104250.0,0.0065476]
[1737248751918,0.60629935,104260.0,104250.0,0.0065476]
[1737248752440,0.68329935,104260.0,104250.0,0.0065476]
[1737248752968,0.47727766,104260.0,104250.0,0.0065476]
[1737248753171,0.58329935,104260.0,104250.0,0.0065476]
[1737248754405,0.68932104,104260.0,104250.0,0.0065476]
[1737248757151,0.81232104,104260.0,104250.0,0.0065476]
[1737248757353,0.89163487,104260.0,104250.0,0.0065476]
[1737248758865,0.81232104,104260.0,104250.0,0.0065476]
[1737248761414,0.96232104,104260.0,104250.0,0.0065476]
[1737248761626,0.86232104,104260.0,104250.0,0.0065476]
[1737248761843,0.86232104,104260.0,104250.0,0.00955404]
[1737248762058,0.86232104,104260.0,104250.0,0.0070134]
[1737248762660,0.94821789,104260.0,104250.0,0.0070134]
[1737248763185,1.0474587,104260.0,104250.0,0.0070134]
[1737248763570,1.07706316,104260.0,104250.0,0.0070134]
[1737248764341,0.94821789,104260.0,104250.0,0.0070134]
[1737248768301,0.79821789,104260.0,104250.0,0.0070134]
[1737248768519,0.79821789,104260.0,104250.0,4e-07]
[1737248768696,1.66611789,104260.0,104250.0,9e-08]
[1737248768849,0.173,104250.0,104240.0,0.00089775]
[1737248769055,0.80554766,104250.0,104240.0,0.0078408]
[1737248769265,0.804348,104250.0,104240.0,0.0078408]
[1737248770087,0.89005964,104250.0,104240.0,0.0078408]
[1737248770244,0.89005964,104250.0,104240.0,0.00089775]
[1737248770446,0.89005964,104250.0,104240.0,0.0078408]
[1737248770672,0.89005964,104250.0,104240.0,0.00089775]
[1737248770877,1.01890491,104250.0,104240.0,0.00089775]
[1737248771665,1.40544073,104250.0,104240.0,0.00089775]
[1737248772566,1.19069861,104250.0,104240.0,0.00089775]
[1737248773501,1.40544073,104250.0,104240.0,0.00089775]
[1737248773920,0.23763483,104230.0,104220.0,0.0004276]
[1737248774144,0.75282867,104230.0,104220.0,0.0004276]
[1737248774354,0.90282867,104230.0,104220.0,0.00696929]
[1737248775187,1.11738558,104230.0,104220.0,0.00696929]
[1737248775621,1.11738558,104230.0,104220.0,6e-07]
[1737248776059,0.98854031,104230.0,104220.0,6e-07]
[1737248778758,0.90282867,104230.0,104220.0,6e-07]
[1737248779692,0.70952033,104230.0,104220.0,6e-07]
[1737248779890,0.92156371,104230.0,104220.0,6e-07]
[1737248780693,0.93121449,104230.0,104220.0,6e-07]
[1737248781708,0.88221449,104230.0,104220.0,6e-07]
[1737248782055,0.39245,104220.0,104210.0,3e-07]
[1737248782257,0.802975,104220.0,104210.0,0.00620365]
[1737248782660,0.802975,104220.0,104210.0,0.00720236]
[1737248782865,0.3965,104200.0,104170.0,0.15963256]
[1737248783070,0.20200869,104180.0,104170.0,0.15963256]
[1737248783278,0.30244956,104180.0,104170.0,0.15963256]
[1737248783485,0.3012495,104180.0,104170.0,0.15963256]
[1737248783680,0.3012495,104180.0,104170.0,0.20618857]
[1737248784099,0.3012495,104180.0,104170.0,0.20669033]
[1737248786009,0.2052625,104180.0,104170.0,0.20669033]
[1737248786201,0.2052625,104180.0,104170.0,0.30268633]
[1737248786607,0.2109025,104180.0,104170.0,0.30268633]
[1737248789357,0.2109025,104180.0,104170.0,0.30311433]
[1737248790149,0.2109025,104180.0,104170.0,0.30871622]
[1737248791592,0.2109025,104180.0,104170.0,0.21272022]
[1737248791755,0.30808953,104180.0,104170.0,0.21272022]
[1737248791960,0.3068895,104180.0,104170.0,0.13452022]
[1737248792187,0.3068895,104180.0,104170.0,0.08892022]
[1737248792375,0.3068895,104180.0,104170.0,0.09222641]
[1737248800626,0.2109025,104180.0,104170.0,0.23742241]
[1737248801401,0.2052625,104180.0,104170.0,0.23742241]
[1737248801618,0.10484081,104180.0,104170.0,0.23742241]
[1737248801828,0.2108625,104180.0,104170.0,0.23742241]
[1737248802568,0.2108625,104180.0,104170.0,0.31652241]
[1737248802787,0.2052625,104180.0,104170.0,0.31652241]
[1737248802995,0.29849733,104180.0,104170.0,0.31652241]
[1737248803197,0.09924081,104180.0,104170.0,0.31652241]
[1737248803714,0.18687564,104180.0,104170.0,0.31652241]
[1737248804133,0.09924081,104180.0,104170.0,0.31652241]
[1737248804278,0.26162169,104200.0,104190.0,0.095978]
[1737248804616,0.3068315,104200.0,104190.0,0.1541871]
[1737248805035,0.3068315,104200.0,104190.0,0.0582091]
[1737248805244,0.3068315,104200.0,104190.0,0.09139767]
[1737248806199,0.19520981,104200.0,104190.0,0.09139767]
[1737248806397,0.2052625,104200.0,104190.0,0.18737567]
[1737248806601,0.29849733,104200.0,104190.0,0.18737567]
[1737248807013,0.2108625,104200.0,104190.0,0.18737567]
[1737248807232,0.29849733,104200.0,104190.0,0.18737567]
[1737248807448,0.2108625,104200.0,104190.0,0.18737567]
[1737248807652,0.3068315,104200.0,104190.0,0.09139767]
[1737248808719,0.29849733,104200.0,104190.0,0.18737567]
[1737248808879,0.2108625,104200.0,104190.0,0.18737567]
[1737248809255,0.18687564,104200.0,104190.0,0.26647567]
[1737248809454,0.09924081,104200.0,104190.0,0.31567567]
[1737248809682,0.18687564,104200.0,104190.0,0.31567567]
[1737248810473,0.29289733,104200.0,104190.0,0.32286591]
[1737248813289,0.2052625,104200.0,104190.0,0.32286591]
[1737248813493,0.09924081,104200.0,104190.0,0.32286591]
[1737248813778,0.18687564,104200.0,104190.0,0.32329391]
[1737248814002,0.09924081,104200.0,104190.0,0.32329391]
[1737248814174,0.10044053,104200.0,104190.0,0.32329391]
[1737248814599,0.19455533,104210.0,104200.0,0.095969]
[1737248814794,0.29379614,104210.0,104200.0,0.095969]
[1737248814993,0.29379614,104210.0,104200.0,0.10492667]
[1737248815267,0.29379614,104210.0,104200.0,0.18731524]
[1737248817128,0.18777445,104210.0,104200.0,0.18731524]
[1737248817304,0.10013962,104210.0,104200.0,0.31631524]
[1737248818331,0.18897403,104210.0,104200.0,0.31631524]
[1737248818939,0.18897403,104210.0,104200.0,0.32350548]
[1737248820782,0.39095572,104210.0,104200.0,0.19450548]
[1737248820935,0.38975614,104210.0,104200.0,0.19450548]
[1737248821748,0.38975614,104210.0,104200.0,0.18731524]
[1737248822337,0.18777445,104210.0,104200.0,0.18731524]
[1737248822539,0.18897408,104210.0,104200.0,0.18731524]
[1737248826034,0.18897408,104210.0,104200.0,0.18774324]
[1737248827149,0.10013962,104210.0,104200.0,0.18774324]
[1737248827354,0.10013962,104210.0,104200.0,0.26514324]
[1737248827924,0.18777445,104210.0,104200.0,0.26514324]
[1737248828137,0.10013962,104210.0,104200.0,0.26514324]
[1737248828626,0.00089881,104210.0,104200.0,0.31504324]
[1737248829386,0.00089881,104210.0,104200.0,0.32223348]
[1737248832076,0.00089881,104210.0,104200.0,0.42825517]
[1737248832228,0.00089881,104210.0,104200.0,0.34103464]
[1737248832655,0.00089881,104210.0,104200.0,0.35085349]
[1737248833660,0.00089881,104210.0,104200.0,0.45687518]
[1737248834942,0.00089881,104210.0,104200.0,0.60687518]
[1737248835292,0.00089881,104210.0,104200.0,0.60487518]
[1737248836305,0.00089881,104210.0,104200.0,0.69105526]
[1737248837098,0.00089881,104210.0,104200.0,0.69225082]
[1737248838958,0.00089881,104210.0,104200.0,0.60607074]
[1737248839644,0.00089881,104210.0,104200.0,0.50004905]
[1737248839957,0.00089881,104210.0,104200.0,0.58622913]
[1737248840160,0.08973299,104230.0,104220.0,0.09595]
[1737248840382,0.1889738,104230.0,104220.0,0.10491624]
[1737248840609,0.18777445,104230.0,104220.0,0.10607497]
[1737248841469,0.18792475,104230.0,104220.0,0.10607497]
[1737248841729,0.18792475,104230.0,104220.0,0.18846354]
[1737248841969,0.18792475,104230.0,104220.0,0.19565378]
[1737248842171,0.10028992,104230.0,104220.0,0.19565378]
[1737248843353,0.18792475,104230.0,104220.0,0.19565378]
[1737248844104,0.28386575,104230.0,104220.0,0.19565378]
[1737248844429,0.28386575,104230.0,104220.0,0.21517544]
[1737248845070,0.18792475,104230.0,104220.0,0.21517544]
[1737248845607,0.10028992,104230.0,104220.0,0.21517544]
[1737248846026,0.18792475,104230.0,104220.0,0.21517544]
[1737248846603,0.19623092,104230.0,104220.0,0.21517544]
[1737248846967,0.28386575,104230.0,104220.0,0.21517544]
[1737248847349,0.10028992,104230.0,104220.0,0.21517544]
[1737248847539,0.18792475,104230.0,104220.0,0.21517544]
[1737248847964,0.18792475,104230.0,104220.0,0.19565378]
[1737248849853,0.18912409,104230.0,104220.0,0.19565378]
[1737248852628,0.18792475,104230.0,104220.0,0.19565378]
[1737248854461,0.00104911,104230.0,104220.0,0.19565378]
[1737248855271,0.37344663,104230.0,104220.0,0.19565378]
[1737248855440,0.47268744,104230.0,104220.0,0.19565378]
[1737248855596,0.27072475,104230.0,104220.0,0.19565378]
[1737248856025,0.36666575,104230.0,104220.0,0.19565378]
[1737248856587,0.47268744,104230.0,104220.0,0.19565378]
[1737248856792,0.38505261,104230.0,104220.0,0.09970378]
[1737248856988,0.43465261,104230.0,104220.0,0.09970378]
[1737248860519,0.43465261,104230.0,104220.0,0.19565378]
[1737248860750,0.43465261,104230.0,104220.0,0.09970378]
[1737248861560,0.43465261,104230.0,104220.0,0.19565378]
[1737248861775,0.43465261,104230.0,104220.0,0.09970378]
[1737248864749,0.32863092,104230.0,104220.0,0.09970378]
[1737248864954,0.43465261,104230.0,104220.0,0.09970378]
[1737248867501,0.398315,104230.0,104220.0,0.09970378]
[1737248868239,0.46799908,104230.0,104220.0,0.09970378]
[1737248868643,0.32863092,104230.0,104220.0,0.09970378]
[1737248868853,0.398315,104230.0,104220.0,0.09970378]
[1737248869058,0.43634983,104230.0,104220.0,0.18846354]
[1737248869485,0.47283264,104230.0,104220.0,0.18846354]
[1737248870153,0.27072475,104230.0,104220.0,0.18846354]
[1737248870353,0.36666575,104230.0,104220.0,0.18846354]
[1737248870584,0.27903092,104230.0,104220.0,0.18846354]
[1737248870899,0.27072475,104230.0,104220.0,0.18846354]
[1737248871230,0.36666575,104230.0,104220.0,0.20787977]
[1737248871579,0.27072475,104230.0,104220.0,0.18846354]
[1737248872181,0.18792475,104230.0,104220.0,0.18846354]
[1737248872378,0.10028992,104230.0,104220.0,0.19565539]
[1737248872580,0.18792475,104230.0,104220.0,0.19565539]
[1737248873665,0.00104911,104230.0,104220.0,0.19565539]
[1737248873870,0.00104911,104230.0,104220.0,0.27375539]
[1737248874863,0.00104911,104230.0,104220.0,0.66159668]
[1737248875282,0.00104911,104230.0,104220.0,0.66209338]
[1737248875647,0.00104911,104230.0,104220.0,0.67189037]
[1737248875767,0.00104911,104230.0,104220.0,0.80117081]
[1737248876180,0.00104911,104230.0,104220.0,0.82047372]
[1737248876813,0.00104911,104230.0,104220.0,0.74237372]
[1737248878920,0.00104911,104230.0,104220.0,0.82865988]
[1737248879603,0.39003264,104230.0,104220.0,0.81886289]
[1737248879793,0.38499781,104230.0,104220.0,0.70360998]
[1737248880109,0.43339781,104230.0,104220.0,0.70360998]
[1737248880267,0.5395647,104230.0,104220.0,0.70360998]
[1737248880466,0.73880551,104230.0,104220.0,0.70360998]
[1737248880678,0.93880551,104230.0,104220.0,0.10020209]
[1737248880908,0.93880551,104230.0,104220.0,0.09301024]
[1737248881365,1.45552383,104230.0,104220.0,0.09301024]
[1737248881571,1.45552383,104230.0,104220.0,0.02852783]
[1737248881995,1.45552383,104230.0,104210.0,1e-06]
[1737248881996,0.11895,104220.0,104210.0,1e-06]
[1737248882172,0.52696,104210.0,104200.0,0.000428]
[1737248882411,0.7323677,104210.0,104200.0,0.000428]
[1737248882605,0.7553677,104210.0,104200.0,0.000428]
[1737248883197,1.01372686,104210.0,104200.0,0.000428]
[1737248883400,1.11989375,104210.0,104200.0,0.000428]
[1737248883598,1.21913456,104210.0,104200.0,0.000428]
[1737248884075,1.11989375,104210.0,104200.0,0.000428]
[1737248885053,1.11989375,104210.0,104190.0,0.000428]
[1737248885054,0.526969,104200.0,104190.0,0.000428]
[1737248885255,0.7323767,104200.0,104190.0,0.000428]
[1737248886745,0.94687815,104200.0,104190.0,0.000428]
[1737248887648,1.11834999,104200.0,104190.0,0.000428]
[1737248887854,1.2175908,104200.0,104190.0,0.000428]
[1737248888334,1.43180963,104200.0,104190.0,0.000428]
[1737248889502,1.21730818,104200.0,104190.0,0.000428]
[1737248890291,0.93966945,104200.0,104190.0,0.000428]
[1737248890489,1.15200323,104200.0,104190.0,0.000428]
[1737248891075,1.02347193,104200.0,104190.0,0.000428]
[1737248891680,0.9377844,104200.0,104190.0,0.000428]
[1737248891932,0.9377844,104200.0,104190.0,0.00643093]
[1737248892137,0.9377844,104200.0,104190.0,0.000428]
[1737248892316,0.9377844,104200.0,104190.0,0.00643093]
[1737248892516,0.9377844,104200.0,104190.0,0.000428]
[1737248892741,0.9377844,104200.0,104190.0,0.00643093]
[1737248892892,0.9377844,104200.0,104190.0,0.000428]
[1737248893099,0.9607844,104200.0,104190.0,0.00643093]
[1737248893415,0.9607844,104200.0,104190.0,0.000428]
[1737248893636,0.83854359,104200.0,104190.0,0.000428]
[1737248893844,0.84438359,104200.0,104190.0,0.00643093]
[1737248898195,0.86738359,104200.0,104190.0,0.00643093]
[1737248898414,0.274987,104180.0,104170.0,0.000428]
[1737248898675,0.4803947,104180.0,104170.0,0.000428]
[1737248898875,0.52863551,104180.0,104170.0,0.000428]
[1737248899015,0.42246862,104180.0,104170.0,0.01827592]
[1737248899365,0.6348024,104180.0,104170.0,0.01827592]
[1737248899695,0.6348024,104180.0,104170.0,0.01877768]
[1737248900438,0.6348024,104180.0,104170.0,0.00092976]
[1737248901642,0.64446543,104180.0,104170.0,0.00092976]
[1737248903582,0.79446543,104180.0,104170.0,0.00092976]
[1737248905515,0.79446543,104180.0,104170.0,0.01879197]
[1737248905852,0.48289084,104180.0,104170.0,0.01879197]
[1737248906055,0.58905773,104180.0,104170.0,0.01879197]
[1737248906265,0.58905773,104180.0,104170.0,0.02436436]
[1737248906676,0.59489773,104180.0,104170.0,0.02436436]
[1737248907031,0.58905773,104180.0,104170.0,0.02436436]
[1737248907235,0.64589773,104180.0,104170.0,0.02436436]
[1737248907431,0.64589773,104180.0,104170.0,0.02569804]
[1737248908709,0.64005773,104180.0,104170.0,0.02569804]
[1737248908879,0.46689773,104180.0,104170.0,0.02569804]
[1737248909094,0.31105773,104180.0,104170.0,0.02569804]
[1737248909418,0.3072347,104180.0,104170.0,0.02569804]
[1737248911747,0.3013947,104180.0,104170.0,0.02569804]
[1737248911947,0.3072347,104180.0,104170.0,0.02569804]
[1737248914091,0.20106781,104180.0,104170.0,0.02569804]
[1737248914274,0.30843475,104180.0,104170.0,0.02569804]
[1737248914487,0.3072347,104180.0,104170.0,0.02569804]
[1737248916235,0.3013947,104180.0,104170.0,0.02569804]
[1737248916454,0.3071947,104180.0,104170.0,0.02569804]
[1737248919369,0.19522781,104180.0,104170.0,0.02569804]
[1737248919511,0.3013947,104180.0,104170.0,0.10599804]
[1737248919909,0.18687564,104180.0,104170.0,0.08813583]
[1737248920129,0.08853364,104190.0,104180.0,0.095987]
[1737248920337,0.08853364,104190.0,104180.0,0.372687]
[1737248920516,0.00089881,104190.0,104180.0,0.37859755]
[1737248921321,0.00089881,104190.0,104180.0,0.39657062]
[1737248922824,0.00089881,104190.0,104180.0,0.41534159]
[1737248923229,0.30228451,104190.0,104180.0,0.31935459]
[1737248923433,0.30228451,104190.0,104180.0,0.41534159]
[1737248924195,0.30228451,104190.0,104180.0,0.39657062]
[1737248924726,0.30228451,104190.0,104180.0,0.30058362]
[1737248926206,0.30228451,104190.0,104180.0,0.15058362]
[1737248926605,0.30228451,104190.0,104180.0,0.24657062]
[1737248927500,0.30228451,104190.0,104180.0,0.07028362]
[1737248929116,0.19611762,104190.0,104180.0,0.07028362]
[1737248929319,0.30348435,104190.0,104180.0,0.07028362]
[1737248929518,0.30228451,104190.0,104180.0,0.02388362]
[1737248929716,0.4084514,104190.0,104180.0,0.02388362]
[1737248929974,0.30228451,104190.0,104180.0,0.02388362]
[1737248930169,0.4084514,104190.0,104180.0,0.02431162]
[1737248931453,0.4858514,104190.0,104180.0,0.02431162]
[1737248939266,0.30228451,104190.0,104180.0,0.02431162]
[1737248939552,0.4084514,104190.0,104180.0,0.02431162]
[1737248941288,0.30228451,104190.0,104180.0,0.02431162]
[1737248941891,0.19611762,104190.0,104180.0,0.16549862]
[1737248942094,0.28375245,104190.0,104180.0,0.16549862]
[1737248943155,0.18777445,104190.0,104180.0,0.16549862]
[1737248943326,0.18777445,104190.0,104180.0,0.24129862]
[1737248943526,0.28375245,104190.0,104180.0,0.24129862]
[1737248945574,0.18777445,104190.0,104180.0,0.24129862]
[1737248946360,0.28375245,104190.0,104180.0,0.24129862]
[1737248946880,0.08853364,104190.0,104180.0,0.24129862]
[1737248947535,0.00089881,104190.0,104180.0,0.24129862]
[1737248950413,0.00089881,104190.0,104180.0,0.26072866]
[1737248952378,0.00089881,104190.0,104180.0,0.26233851]
[1737248952782,0.00089881,104190.0,104180.0,0.24290847]
[1737248953342,0.50701164,104190.0,104180.0,0.24290847]
[1737248953896,0.41103364,104190.0,104180.0,0.24290847]
[1737248957751,0.70218451,104190.0,104180.0,0.02592147]
[1737248959328,0.37968451,104190.0,104180.0,0.02592147]
[1737248964893,0.27351762,104190.0,104180.0,0.12190847]
[1737248965055,0.27351762,104190.0,104180.0,0.02592147]
[1737248965434,0.37954051,104190.0,104180.0,0.02592147]
[1737248966349,0.37954051,104190.0,104180.0,0.12190847]
[1737248967664,0.27337362,104190.0,104180.0,0.12190847]
[1737248967855,0.37954051,104190.0,104180.0,0.12190847]
[1737248968276,0.09999562,104190.0,104180.0,0.12190847]
[1737248968481,0.19597362,104190.0,104180.0,0.12190847]
[1737248969086,0.18763045,104190.0,104180.0,0.12190847]
[1737248969861,0.18763045,104190.0,104180.0,0.20819463]
[1737248970671,0.18763045,104190.0,104180.0,0.12190847]
[1737248972188,0.18763045,104190.0,104180.0,0.20819463]
[1737248972397,0.00075481,104190.0,104180.0,0.20819463]
[1737248972626,0.00075481,104190.0,104180.0,0.59036152]
[1737248973041,0.00075481,104190.0,104180.0,0.48419463]
[1737248973616,0.08853364,104200.0,104190.0,0.095978]
[1737248974038,0.08789764,104200.0,104190.0,0.10330447]
[1737248975483,0.08789764,104200.0,104190.0,0.12127754]
[1737248977297,0.41039764,104200.0,104190.0,0.12127754]
[1737248978597,0.32276281,104200.0,104190.0,0.12127754]
[1737248979784,0.32276281,104200.0,104190.0,0.19627754]
[1737248980017,0.32276281,104200.0,104190.0,0.2825637]
[1737248980218,0.32276281,104200.0,104190.0,0.4325637]
[1737248980435,0.32276281,104200.0,104190.0,0.56184413]
[1737248981160,0.32276281,104200.0,104190.0,0.73421804]
[1737248983831,0.32276281,104200.0,104190.0,0.77921804]
[1737248985297,0.32276281,104200.0,104190.0,0.99468543]
[1737248986910,0.32276281,104200.0,104190.0,0.90839927]
[1737248988403,0.32276281,104200.0,104190.0,0.99464335]
[1737248989407,0.00026281,104200.0,104190.0,0.99464335]
[1737248991674,0.08763483,104210.0,104200.0,0.095969]
[1737248991977,0.171558,104220.0,104210.0,0.09596]
[1737248992129,0.27079881,104220.0,104210.0,0.09596]
[1737248992353,0.27079881,104220.0,104210.0,0.1016522]
[1737248993071,0.27079881,104220.0,104210.0,0.11962527]
[1737248993275,0.27094304,104220.0,104210.0,0.11962527]
[1737248994606,0.37710993,104220.0,104210.0,0.11962527]
[1737248995565,0.41032376,104220.0,104210.0,0.01955074]
[1737248995758,0.43332376,104220.0,104210.0,0.0228627]
[1737248997409,0.40015105,104220.0,104210.0,0.0228627]
[1737249000515,0.40104986,104220.0,104210.0,0.0228627]
[1737249002179,0.27184185,104220.0,104210.0,0.1188227]
[1737249002384,0.37804986,104220.0,104210.0,0.0228627]
[1737249003175,0.50725787,104220.0,104210.0,0.0228627]
[1737249003398,0.55345787,104220.0,104210.0,0.0228627]
[1737249003603,0.65345787,104220.0,104210.0,0.0228627]
[1737249004259,0.7391454,104220.0,104210.0,0.0228627]
[1737249005498,1.03943116,104220.0,104210.0,0.0228627]
[1737249005685,0.93943116,104220.0,104210.0,0.0228627]
[1737249005869,0.94583116,104220.0,104210.0,0.0228627]
[1737249006107,1.07499458,104220.0,104210.0,0.0228627]
[1737249006731,1.0843445,104220.0,104210.0,0.0228627]
[1737249007143,1.17046412,104220.0,104210.0,0.0228627]
[1737249007942,1.1611142,104220.0,104210.0,0.0228627]
[1737249008127,0.96238657,104220.0,104210.0,0.0228627]
[1737249008436,0.96878657,104220.0,104210.0,0.0228627]
[1737249009049,0.96238657,104220.0,104210.0,0.0228627]
[1737249009268,0.57641328,104220.0,104210.0,0.0228627]
[1737249010221,0.66263358,104220.0,104210.0,0.0228627]
[1737249011024,0.53347016,104220.0,104210.0,0.00488963]
[1737249011453,0.53347016,104220.0,104210.0,0.02285293]